lending/lending_fUSD_20240110
["ID","MTS","AMOUNT","RATE_DAILY","PERIOD"]
[311145414,1704930655790,-1038.02,0.00041095,30]
[311145415,1704930655799,-1139.63,0.00041095,30]
[311145416,1704930655808,-738.06,0.00041095,30]
[311145417,1704930655817,-1635.48,0.00041095,30]
[311145418,1704930655827,-180.0,0.00041096,2]
[311145419,1704930655836,-2400.0,0.00041096,14]
[311145420,1704930655846,-333.40111,0.00041098,8]
[311145421,1704930655855,-200.0,0.000411,2]
[311145422,1704930655865,-5500.0,0.000411,30]
[311145423,1704930655875,-1500.0,0.000411,30]
[311145424,1704930655884,-8000.0,0.000411,5]
[311145425,1704930655894,-1000.0,0.000411,2]
[311145426,1704930655904,-150.0,0.00041104,2]
[311145427,1704930655914,-150.0,0.00041149,2]
[311145428,1704930655923,-176.46,0.00041159,2]
[311145429,1704930655932,-797.91377071,0.0004116,2]
[311145430,1704930655942,-150.0,0.00041175,2]
[311145431,1704930655953,-150.0,0.00041187,2]
[311145432,1704930655963,-333.40111,0.00041198,8]
[311145433,1704930655972,-500.0,0.00041201,2]
[311145434,1704930655982,-200.0,0.00041201,20]
[311145435,1704930655991,-800.0,0.00041201,20]
[311145436,1704930656000,-2149.07,0.00041208,7]
[311145437,1704930656010,-2149.07,0.00041208,7]
[311145438,1704930656020,-153.72803979,0.00041221,7]
[311145439,1704930656029,-150.38353361,0.0004123,7]
[311145440,1704930656039,-500.0,0.00041232,10]
[311145441,1704930656048,-150.0,0.00041236,2]
[311145442,1704930656058,-150.0,0.0004124,2]
[311145443,1704930656067,-261.95629282,0.0004126,2]
[311145444,1704930656077,-150.0,0.00041282,2]
[311145445,1704930656086,-150.0,0.00041282,2]
[311145446,1704930656096,-333.40111,0.00041298,8]
[311145447,1704930656105,-4093.62,0.000413,7]
[311145448,1704930656114,-300.68,0.000413,2]
[311145449,1704930656124,-150.0,0.00041301,2]
[311145450,1704930656134,-500.0,0.00041326,2]
[311145451,1704930656144,-500.0,0.00041326,2]
[311145452,1704930656154,-500.0,0.00041326,2]
[311145453,1704930656163,-500.0,0.00041326,2]
[311145454,1704930656174,-350.8951,0.00041326,2]
[311145455,1704930656183,-5000.0,0.00041369,2]
[311145456,1704930656193,-500.0,0.00041369,30]
[311145457,1704930656205,-500.0,0.00041369,30]
[311145458,1704930656215,-500.0,0.00041369,15]
[311145459,1704930656224,-685.92,0.00041369,30]
[311145460,1704930656234,-500.0,0.00041369,30]
[311145461,1704930656243,-500.0,0.00041369,30]
[311145462,1704930656253,-688.82,0.00041369,30]
[311145463,1704930656262,-721.23,0.00041369,30]
[311145464,1704930656271,-524.91,0.00041369,2]
[311145465,1704930656281,-500.05,0.00041369,30]
[311145466,1704930656291,-500.0,0.00041369,30]
[311145467,1704930656301,-500.0,0.00041369,30]
[311145468,1704930656310,-699.67,0.00041369,30]
[311145469,1704930656320,-500.0,0.00041369,30]
[311145470,1704930656334,-500.0,0.00041369,30]
[311145471,1704930656344,-554.25,0.00041369,30]
[311145472,1704930656358,-500.0,0.00041369,30]
[311145473,1704930656379,-500.0,0.00041369,30]
[311145474,1704930656403,-557.24,0.00041369,30]
[311145475,1704930656425,-544.66,0.00041369,30]
[311145476,1704930656447,-500.0,0.00041369,30]
[311145477,1704930656488,-1352.01,0.00041369,30]
[311145478,1704930656507,-500.0,0.00041369,30]
[311145479,1704930656517,-500.0,0.00041369,30]
[311145480,1704930656526,-980.16,0.00041369,30]
[311145481,1704930656535,-500.0,0.00041369,30]
[311145482,1704930656545,-500.0,0.00041369,30]
[311145483,1704930656554,-500.0,0.00041369,30]
[311145484,1704930656564,-500.0,0.00041369,30]
[311145485,1704930656573,-500.0,0.00041369,30]
[311145486,1704930656582,-599.26803721,0.00041369,30]
[311145487,1704930656592,-1117.31,0.00041369,30]
[311145488,1704930656601,-750.0,0.00041369,10]
[311145489,1704930656611,-507.48,0.00041369,30]
[311145490,1704930656620,-758.69,0.00041369,30]
[311145491,1704930656629,-532.71,0.00041369,30]
[311145492,1704930656639,-506.09,0.00041369,30]
[311145493,1704930656648,-746.81,0.00041369,30]
[311145494,1704930656658,-500.0,0.00041369,30]
[311145495,1704930656667,-584.0,0.00041369,30]
[311145496,1704930656676,-818.52,0.00041369,30]
[311145497,1704930656686,-500.0,0.00041369,30]
[311145498,1704930656695,-500.0,0.00041369,30]
[311145499,1704930656707,-544.62,0.00041369,30]
[311145500,1704930656716,-701.9,0.00041369,30]
[311145501,1704930656726,-1156.27,0.00041369,30]
[311145502,1704930656735,-500.0,0.00041369,30]
[311145503,1704930656745,-500.0,0.00041369,30]
[311145504,1704930656754,-969.46,0.00041369,30]
[311145505,1704930656763,-1923.82,0.00041369,30]
[311145506,1704930656773,-535.15,0.00041369,30]
[311145507,1704930656782,-500.0,0.00041369,30]
[311145508,1704930656793,-500.0,0.00041369,30]
[311145509,1704930656802,-522.94,0.00041369,30]
[311145510,1704930656811,-500.0,0.00041369,30]
[311145511,1704930656821,-1192.59,0.00041369,30]
[311145512,1704930656830,-669.83,0.00041369,30]
[311145513,1704930656839,-500.0,0.00041369,30]
[311145514,1704930656849,-695.51,0.00041369,30]
[311145515,1704930656858,-500.0,0.00041369,30]
[311145516,1704930656867,-500.0,0.00041369,30]
[311145517,1704930656877,-500.0,0.00041369,5]
[311145518,1704930656886,-668.02,0.00041369,30]
[311145519,1704930656894,-552.24,0.00041369,30]
[311145520,1704930656904,-1038.02,0.00041369,30]
[311145521,1704930656913,-1139.63,0.00041369,30]
[311145522,1704930656922,-738.06,0.00041369,30]
[311145523,1704930656931,-300.0,0.00041373,2]
[311145524,1704930656940,-150.99155862,0.00041396,12]
[311145525,1704930656952,-333.40111,0.00041398,8]
[311145526,1704930656963,-153.72803979,0.000414,7]
[311145527,1704930656972,-152.97219112,0.00041423,7]
[311145528,1704930656982,-1998.08,0.0004145,2]
[311145529,1704930656991,-150.0,0.00041455,2]
[311145530,1704930657001,-152.97219112,0.00041464,7]
[311145531,1704930657010,-150.38353361,0.00041469,7]
[311145532,1704930657020,-150.0,0.00041479,2]
[311145533,1704930657029,-2149.07,0.00041481,7]
[311145534,1704930657039,-2149.07,0.00041481,7]
[311145535,1704930657048,-682.03350113,0.00041489,2]
[311145536,1704930657058,-205922.099185,0.00041492,2]
[311145537,1704930657068,-1619.2475471,0.00041492,2]
[311145538,1704930657078,-333.40111,0.00041498,8]
[311145539,1704930657087,-150.0,0.000415,14]
[311145540,1704930657097,-150.0,0.000415,14]
[311145541,1704930657107,-150.0,0.000415,20]
[311145542,1704930657117,-1037.6631936,0.000415,5]
[311145543,1704930657127,-1000.0,0.00041506,10]
[311145544,1704930657137,-185.92843094,0.00041513,15]
[311145545,1704930657147,-300.02,0.00041533,2]
[311145546,1704930657157,-1644.6261793,0.00041533,2]
[311145547,1704930657167,-2310.5951701,0.00041533,3]
[311145548,1704930657177,-2000.0,0.00041552,7]
[311145549,1704930657187,-200.0,0.00041552,7]
[311145550,1704930657198,-16983.57050734,0.00041552,15]
[311145551,1704930657215,-96974.26627865,0.00041554,15]
[311145552,1704930657225,-5403.00220206,0.00041556,15]
[311145553,1704930657235,-424.5,0.00041556,2]
[311145554,1704930657244,-42436.99190713,0.00041558,15]
[311145555,1704930657253,-23606.20600383,0.00041558,15]
[311145556,1704930657262,-599.96867802,0.00041559,15]
[311145557,1704930657271,-2224.34650192,0.00041559,15]
[311145558,1704930657281,-1644.45979013,0.00041559,10]
[311145559,1704930657289,-2336.51077411,0.00041559,10]
[311145560,1704930657298,-599.96867802,0.0004156,15]
[311145561,1704930657307,-3892.60637844,0.0004156,10]
[311145562,1704930657317,-10873.61591432,0.0004156,15]
[311145563,1704930657326,-16086.29790918,0.0004156,10]
[311145564,1704930657335,-74264.73583756,0.00041561,10]
[311145565,1704930657344,-41310.86050678,0.00041561,10]
[311145566,1704930657353,-17228.95190713,0.00041561,10]
[311145567,1704930657363,-939.6913086,0.00041562,15]
[311145568,1704930657372,-9845.11537546,0.00041562,15]
[311145569,1704930657381,-2336.51077411,0.00041562,10]
[311145570,1704930657390,-5403.00220206,0.00041563,15]
[311145571,1704930657399,-2336.51077411,0.00041563,10]
[311145572,1704930657409,-4842.23384396,0.00041563,15]
[311145573,1704930657418,-599.96867802,0.00041565,15]
[311145574,1704930657427,-2856.60237507,0.00041566,10]
[311145575,1704930657436,-8473.90922701,0.00041566,10]
[311145576,1704930657445,-200.0,0.00041566,10]
[311145577,1704930657459,-2856.60237507,0.00041567,10]
[311145578,1704930657468,-5571.92870796,0.00041567,15]
[311145579,1704930657477,-1335.14901373,0.00041567,15]
[311145580,1704930657486,-5571.92870796,0.00041567,15]
[311145581,1704930657495,-2856.60237507,0.00041567,10]
[311145582,1704930657504,-17228.95190713,0.00041568,10]
[311145583,1704930657514,-3892.60637844,0.00041568,10]
[311145584,1704930657523,-19028.82785013,0.00041568,10]
[311145585,1704930657532,-96974.26627865,0.00041569,15]
[311145586,1704930657541,-4842.23384396,0.00041569,15]
[311145587,1704930657550,-4842.23384396,0.00041569,15]
[311145588,1704930657559,-2224.34650192,0.00041569,15]
[311145589,1704930657568,-269391.72258791,0.00041569,15]
[311145590,1704930657578,-269391.72258791,0.0004157,15]
[311145591,1704930657587,-1049.94518662,0.0004157,10]
[311145592,1704930657596,-9192.17023377,0.0004157,15]
[311145593,1704930657605,-76382.4046365,0.0004157,2]
[311145594,1704930657615,-2445.7053295,0.0004157,2]
[311145595,1704930657624,-4913.0983966,0.0004157,2]
[311145596,1704930657634,-95101.8322812,0.0004157,2]
[311145597,1704930657644,-22015.3222661,0.0004157,2]
[311145598,1704930657653,-737.82507668,0.0004157,2]
[311145599,1704930657662,-471435.51452893,0.0004157,10]
[311145600,1704930657671,-2224.34650192,0.00041571,15]
[311145601,1704930657680,-8473.90922701,0.00041571,10]
[311145602,1704930657689,-9750.875239,0.00041571,10]
[311145603,1704930657698,-1632.34421428,0.00041572,15]
[311145604,1704930657711,-200.0,0.00041572,10]
[311145605,1704930657720,-169704.96598772,0.00041572,10]
[311145606,1704930657729,-9455.25385368,0.00041573,10]
[311145607,1704930657739,-5571.92870796,0.00041573,15]
[311145608,1704930657748,-169704.96598772,0.00041573,10]
[311145609,1704930657757,-41310.86050678,0.00041574,10]
[311145610,1704930657767,-23606.20600383,0.00041577,15]
[311145611,1704930657776,-74264.73583756,0.00041577,10]
[311145612,1704930657785,-1335.14901373,0.00041577,15]
[311145613,1704930657794,-24769.6037792,0.00041577,10]
[311145614,1704930657804,-16086.29790918,0.00041578,10]
[311145615,1704930657813,-5403.00220206,0.00041578,15]
[311145616,1704930657822,-10873.61591432,0.00041578,15]
[311145617,1704930657832,-9750.875239,0.00041579,10]
[311145618,1704930657841,-9845.11537546,0.00041579,15]
[311145619,1704930657850,-23606.20600383,0.0004158,15]
[311145620,1704930657859,-9750.875239,0.0004158,10]
[311145621,1704930657869,-74264.73583756,0.0004158,10]
[311145622,1704930657878,-169704.96598772,0.0004158,10]
[311145623,1704930657887,-200.0,0.0004158,10]
[311145624,1704930657896,-9455.25385368,0.00041581,10]
[311145625,1704930657906,-1644.45979013,0.00041582,10]
[311145626,1704930657915,-9455.25385368,0.00041582,10]
[311145627,1704930657925,-1049.94518662,0.00041583,10]
[311145628,1704930657934,-1049.94518662,0.00041583,10]
[311145629,1704930657943,-17228.95190713,0.00041584,10]
[311145630,1704930657955,-9455.25385368,0.00041584,10]
[311145631,1704930657964,-169704.96598772,0.00041584,10]
[311145632,1704930657973,-41310.86050678,0.00041585,10]
[311145633,1704930657982,-41310.86050678,0.00041585,10]
[311145634,1704930657991,-24769.6037792,0.00041586,10]
[311145635,1704930658001,-16086.29790918,0.00041586,10]
[311145636,1704930658010,-24769.6037792,0.00041586,10]
[311145637,1704930658020,-3892.60637844,0.00041587,10]
[311145638,1704930658029,-471435.51452893,0.00041589,10]
[311145639,1704930658038,-8473.90922701,0.00041589,10]
[311145640,1704930658047,-19028.82785013,0.00041589,10]
[311145641,1704930658056,-471435.51452893,0.0004159,10]
[311145642,1704930658066,-16086.29790918,0.00041591,10]
[311145643,1704930658075,-2856.60237507,0.00041591,10]
[311145644,1704930658084,-8473.90922701,0.00041591,10]
[311145645,1704930658093,-24769.6037792,0.00041591,10]
[311145646,1704930658102,-17228.95190713,0.00041592,10]
[311145647,1704930658111,-1644.45979013,0.00041592,10]
[311145648,1704930658120,-471435.51452893,0.00041593,10]
[311145649,1704930658130,-19028.82785013,0.00041594,10]
[311145650,1704930658139,-19028.82785013,0.00041595,10]
[311145651,1704930658148,-1049.94518662,0.00041595,10]
[311145652,1704930658158,-1644.45979013,0.00041596,10]
[311145653,1704930658167,-3892.60637844,0.00041596,10]
[311145654,1704930658177,-74264.73583756,0.00041596,10]
[311145655,1704930658186,-9750.875239,0.00041598,10]
[311145656,1704930658195,-666.40111,0.00041598,8]
[311145657,1704930658208,-2336.51077411,0.00041598,10]
[311145658,1704930658217,-9575.04763644,0.000416,5]
[311145659,1704930658226,-1000.0,0.000416,2]
[311145660,1704930658235,-1000.0,0.000416,2]
[311145661,1704930658244,-2000.0,0.000416,2]
[311145662,1704930658254,-1965.990009,0.000416,15]
[311145663,1704930658263,-304.949637,0.000416,15]
[311145664,1704930658273,-1037.6631932,0.000416,5]
[311145665,1704930658282,-500.0,0.00041643,30]
[311145666,1704930658292,-267.82464293,0.00041643,30]
[311145667,1704930658301,-500.0,0.00041643,15]
[311145668,1704930658311,-685.92,0.00041643,30]
[311145669,1704930658320,-500.0,0.00041643,30]
[311145670,1704930658331,-544.27,0.00041643,30]
[311145671,1704930658341,-688.82,0.00041643,30]
[311145672,1704930658353,-721.23,0.00041643,30]
[311145673,1704930658363,-524.91,0.00041643,2]
[311145674,1704930658372,-500.0,0.00041643,30]
[311145675,1704930658382,-500.0,0.00041643,30]
[311145676,1704930658391,-699.67,0.00041643,30]
[311145677,1704930658401,-500.0,0.00041643,30]
[311145678,1704930658410,-500.0,0.00041643,30]
[311145679,1704930658420,-554.25,0.00041643,30]
[311145680,1704930658430,-500.0,0.00041643,30]
[311145681,1704930658440,-500.0,0.00041643,30]
[311145682,1704930658450,-557.24,0.00041643,30]
[311145683,1704930658462,-544.66,0.00041643,30]
[311145684,1704930658472,-500.0,0.00041643,30]
[311145685,1704930658481,-1352.01,0.00041643,30]
[311145686,1704930658490,-500.0,0.00041643,30]
[311145687,1704930658499,-500.0,0.00041643,30]
[311145688,1704930658509,-980.16,0.00041643,30]
[311145689,1704930658519,-500.0,0.00041643,30]
[311145690,1704930658528,-500.0,0.00041643,30]
[311145691,1704930658538,-500.0,0.00041643,30]
[311145692,1704930658547,-500.0,0.00041643,30]
[311145693,1704930658557,-500.0,0.00041643,30]
[311145694,1704930658567,-1117.31,0.00041643,30]
[311145695,1704930658577,-1250.0,0.00041643,10]
[311145696,1704930658587,-507.48,0.00041643,30]
[311145697,1704930658597,-758.69,0.00041643,30]
[311145698,1704930658607,-532.71,0.00041643,30]
[311145699,1704930658616,-506.09,0.00041643,30]
[311145700,1704930658626,-746.81,0.00041643,30]
[311145701,1704930658635,-479.27,0.00041643,30]
[311145702,1704930658645,-584.0,0.00041643,30]
[311145703,1704930658654,-818.52,0.00041643,30]
[311145704,1704930658664,-500.0,0.00041643,30]
[311145705,1704930658674,-500.0,0.00041643,30]
[311145706,1704930658683,-544.62,0.00041643,30]
[311145707,1704930658693,-701.9,0.00041643,30]
[311145708,1704930658706,-1156.27,0.00041643,30]
[311145709,1704930658715,-500.0,0.00041643,30]
[311145710,1704930658725,-500.0,0.00041643,30]
[311145711,1704930658734,-969.46,0.00041643,30]
[311145712,1704930658882,-1923.82,0.00041643,30]
[311145713,1704930658892,-535.15,0.00041643,30]
[311145714,1704930658902,-500.0,0.00041643,30]
[311145715,1704930658911,-500.0,0.00041643,30]
[311145716,1704930658921,-522.94,0.00041643,30]
[311145717,1704930658930,-500.0,0.00041643,30]
[311145718,1704930658940,-1192.59,0.00041643,30]
[311145719,1704930658950,-669.83,0.00041643,30]
[311145720,1704930658964,-500.0,0.00041643,30]
[311145721,1704930658974,-695.51,0.00041643,30]
[311145722,1704930658984,-500.0,0.00041643,30]
[311145723,1704930658994,-500.0,0.00041643,30]
[311145724,1704930659004,-500.0,0.00041643,5]
[311145725,1704930659013,-668.02,0.00041643,30]
[311145726,1704930659022,-552.24,0.00041643,30]
[311145727,1704930659030,-1038.02,0.00041643,30]
[311145728,1704930659039,-1139.63,0.00041643,30]
[311145729,1704930659049,-207.0,0.0004167,2]
[311145730,1704930659059,-213.0,0.0004167,2]
[311145731,1704930659069,-208.0,0.0004167,2]
[311145732,1704930659078,-240.0,0.0004167,2]
[311145733,1704930659087,-218.0,0.0004167,2]
[311145734,1704930659096,-209.0,0.0004167,2]
[311145735,1704930659106,-213.0,0.0004167,2]
[311145736,1704930659115,-209.0,0.0004167,2]
[311145737,1704930659123,-210.0,0.0004167,2]
[311145738,1704930659133,-209.0,0.0004167,2]
[311145739,1704930659142,-210.0,0.0004167,2]
[311145740,1704930659151,-211.0,0.0004167,2]
[311145741,1704930659160,-208.0,0.0004167,2]
[311145742,1704930659170,-217.0,0.0004167,2]
[311145743,1704930659179,-210.0,0.0004167,2]
[311145744,1704930659189,-123503.20682513,0.00041671,30]
[311145745,1704930659198,-2048.0,0.00041671,10]
[311145746,1704930659211,-2048.0,0.00041671,10]
[311145747,1704930659220,-2048.0,0.00041671,10]
[311145748,1704930659230,-2048.0,0.00041671,10]
[311145749,1704930659239,-233.99932445,0.00041671,30]
[311145750,1704930659248,-2100.0,0.00041679,15]
[311145751,1704930659258,-666.40111,0.00041698,6]
[311145752,1704930659268,-4093.62,0.000417,7]
[311145753,1704930659278,-346.10137,0.000417,10]
[311145754,1704930659287,-500.0,0.00041753,30]
[311145755,1704930659296,-2149.07,0.00041754,7]
[311145756,1704930659305,-2149.07,0.00041754,7]
[311145757,1704930659315,-751.867463,0.0004176,5]
[311145758,1704930659324,-14474.85159854,0.0004177,32]
[311145759,1704930659333,-666.0,0.0004178,2]
[311145760,1704930659343,-500.0,0.0004178,5]
[311145761,1704930659352,-1500.0,0.0004178,10]
[311145762,1704930659362,-666.40111,0.00041798,8]
[311145763,1704930659371,-1000.0,0.000418,14]
[311145764,1704930659381,-1000.0,0.000418,30]
[311145765,1704930659390,-1000.0,0.000418,30]
[311145766,1704930659399,-1000.0,0.000418,30]
[311145767,1704930659409,-500.0,0.000418,5]
[311145768,1704930659419,-797.91377071,0.00041814,2]
[311145769,1704930659428,-500.0,0.0004182,5]
[311145770,1704930659438,-500.0,0.00041835,30]
[311145771,1704930659447,-500.0,0.0004184,5]
[311145772,1704930659463,-150.99155862,0.00041845,13]
[311145773,1704930659472,-153.84,0.00041846,2]
[311145774,1704930659481,-417.73308134,0.00041848,14]
[311145775,1704930659490,-300.0,0.00041852,2]
[311145776,1704930659500,-500.0,0.0004186,6]
[311145777,1704930659508,-43259.0,0.0004187,120]
[311145778,1704930659518,-150.0,0.0004187,120]
[311145779,1704930659527,-150.0,0.0004187,120]
[311145780,1704930659536,-150.0,0.0004187,120]
[311145781,1704930659546,-43259.0,0.0004188,120]
[311145782,1704930659555,-150.0,0.0004188,120]
[311145783,1704930659564,-150.0,0.0004188,120]
[311145784,1704930659574,-150.0,0.0004188,120]
[311145785,1704930659582,-500.0,0.0004188,6]
[311145786,1704930659592,-305297.1,0.0004189,12]
[311145787,1704930659601,-43259.0,0.0004189,120]
[311145788,1704930659610,-150.0,0.0004189,120]
[311145789,1704930659619,-150.0,0.0004189,120]
[311145790,1704930659629,-150.0,0.0004189,120]
[311145791,1704930659640,-2663.0,0.0004189,3]
[311145792,1704930659650,-682.03350113,0.00041897,2]
[311145793,1704930659660,-666.40111,0.00041898,6]
[311145794,1704930659671,-2595.16421265,0.000419,60]
[311145795,1704930659681,-1531.099071,0.000419,30]
[311145796,1704930659692,-31998.48644013,0.000419,30]
[311145797,1704930659702,-226.99245594,0.000419,60]
[311145798,1704930659720,-150.0,0.000419,14]
[311145799,1704930659731,-383146.30165982,0.000419,30]
[311145800,1704930659742,-1953.45,0.000419,7]
[311145801,1704930659752,-500.0,0.000419,6]
[311145802,1704930659764,-326.2592589,0.000419,2]
[311145803,1704930659776,-362.7253912,0.000419,2]
[311145804,1704930659786,-151.0,0.000419,14]
[311145805,1704930659797,-9093.81313272,0.000419,2]
[311145806,1704930659807,-3650.79,0.00041904,2]
[311145807,1704930659817,-592.40693717,0.00041917,30]
[311145808,1704930659828,-500.0,0.00041917,30]
[311145809,1704930659838,-500.0,0.00041917,15]
[311145810,1704930659849,-685.92,0.00041917,30]
[311145811,1704930659859,-500.0,0.00041917,30]
[311145812,1704930659871,-688.82,0.00041917,30]
[311145813,1704930659882,-721.23,0.00041917,30]
[311145814,1704930659893,-524.91,0.00041917,2]
[311145815,1704930659903,-500.0,0.00041917,30]
[311145816,1704930659916,-500.0,0.00041917,30]
[311145817,1704930659927,-699.67,0.00041917,30]
[311145818,1704930659937,-500.0,0.00041917,30]
[311145819,1704930659948,-500.0,0.00041917,30]
[311145820,1704930659964,-554.25,0.00041917,30]
[311145821,1704930659975,-500.0,0.00041917,30]
[311145822,1704930659985,-500.0,0.00041917,30]
[311145823,1704930659995,-557.24,0.00041917,30]
[311145824,1704930660005,-544.66,0.00041917,30]
[311145825,1704930660014,-244.86111152,0.00041917,30]
[311145826,1704930660024,-1352.01,0.00041917,30]
[311145827,1704930660034,-500.0,0.00041917,30]
[311145828,1704930660044,-500.0,0.00041917,30]
[311145829,1704930660054,-980.16,0.00041917,30]
[311145830,1704930660064,-500.0,0.00041917,30]
[311145831,1704930660074,-500.0,0.00041917,30]
[311145832,1704930660084,-500.0,0.00041917,30]
[311145833,1704930660094,-500.0,0.00041917,30]
[311145834,1704930660104,-500.0,0.00041917,30]
[311145835,1704930660114,-1117.31,0.00041917,30]
[311145836,1704930660124,-1750.0,0.00041917,10]
[311145837,1704930660134,-507.48,0.00041917,30]
[311145838,1704930660144,-758.69,0.00041917,30]
[311145839,1704930660155,-532.71,0.00041917,30]
[311145840,1704930660164,-506.09,0.00041917,30]
[311145841,1704930660173,-746.81,0.00041917,30]
[311145842,1704930660182,-584.0,0.00041917,30]
[311145843,1704930660192,-818.52,0.00041917,30]
[311145844,1704930660201,-500.0,0.00041917,30]
[311145845,1704930660216,-500.0,0.00041917,30]
[311145846,1704930660225,-544.62,0.00041917,30]
[311145847,1704930660235,-701.9,0.00041917,30]
[311145848,1704930660245,-1156.27,0.00041917,30]
[311145849,1704930660254,-500.0,0.00041917,30]
[311145850,1704930660265,-563.72,0.00041917,30]
[311145851,1704930660275,-969.46,0.00041917,30]
[311145852,1704930660284,-1923.82,0.00041917,30]
[311145853,1704930660294,-535.15,0.00041917,30]
[311145854,1704930660303,-500.0,0.00041917,30]
[311145855,1704930660312,-500.0,0.00041917,30]
[311145856,1704930660322,-522.94,0.00041917,30]
[311145857,1704930660336,-500.0,0.00041917,30]
[311145858,1704930660345,-1192.59,0.00041917,30]
[311145859,1704930660354,-669.83,0.00041917,30]
[311145860,1704930660363,-500.0,0.00041917,30]
[311145861,1704930660374,-695.51,0.00041917,30]
[311145862,1704930660383,-500.0,0.00041917,30]
[311145863,1704930660393,-500.0,0.00041917,30]
[311145864,1704930660402,-500.0,0.00041917,5]
[311145865,1704930660411,-668.02,0.00041917,30]
[311145866,1704930660422,-552.24,0.00041917,30]
[311145867,1704930660431,-1038.02,0.00041917,30]
[311145868,1704930660440,-1139.63,0.00041917,30]
[311145869,1704930660449,-450.0,0.00041918,10]
[311145870,1704930660462,-500.0,0.0004192,6]
[311145871,1704930660472,-18766.28484696,0.0004193,2]
[311145872,1704930660481,-500.0,0.0004194,6]
[311145873,1704930660490,-159.57466415,0.0004195,120]
[311145874,1704930660499,-500.0,0.0004196,6]
[311145875,1704930660508,-150.0,0.0004197,120]
[311145876,1704930660518,-284.09,0.0004197,120]
[311145877,1704930660527,-150.0,0.0004198,120]
[311145878,1704930660536,-150.0,0.0004198,120]
[311145879,1704930660545,-274.58,0.0004198,120]
[311145880,1704930660554,-500.0,0.0004198,6]
[311145881,1704930660564,-500.0,0.00041987,31]
[311145882,1704930660573,-500.0,0.00041987,27]
[311145883,1704930660582,-500.0,0.00041987,24]
[311145884,1704930660591,-500.0,0.00041987,21]
[311145885,1704930660601,-500.0,0.00041987,18]
[311145886,1704930660610,-500.0,0.00041987,15]
[311145887,1704930660619,-150.0,0.0004199,120]
[311145888,1704930660628,-150.0,0.0004199,120]
[311145889,1704930660637,-150.0,0.0004199,120]
[311145890,1704930660647,-682.03350113,0.00041997,2]
[311145891,1704930660656,-666.40111,0.00041998,8]
[311145892,1704930660665,-100000.0,0.00042,3]
[311145893,1704930660674,-13211.86572504,0.00042,120]
[311145894,1704930660683,-600.0,0.00042,43]
[311145895,1704930660692,-9312.53717363,0.00042,45]
[311145896,1704930660701,-156.99,0.00042,7]
[311145897,1704930660714,-500.0,0.00042,7]
[311145898,1704930660723,-1000.0,0.00042,14]
[311145899,1704930660733,-1000.0,0.00042,14]
[311145900,1704930660742,-6019.0,0.00042,5]
[311145901,1704930660752,-5000.0,0.00042,7]
[311145902,1704930660761,-5000.0,0.00042,7]
[311145903,1704930660770,-5000.0,0.00042,7]
[311145904,1704930660779,-11099.35328536,0.00042,30]
[311145905,1704930660788,-190.81538175,0.00042,30]
[311145906,1704930660797,-250.0,0.00042,7]
[311145907,1704930660806,-960.22242,0.00042,2]
[311145908,1704930660816,-20000.0,0.00042,2]
[311145909,1704930660826,-31232.0,0.00042,60]
[311145910,1704930660835,-13113.88595987,0.00042,30]
[311145911,1704930660845,-5615.03560476,0.00042,120]
[311145912,1704930660854,-6800.0,0.00042,14]
[311145913,1704930660863,-10000.0,0.00042,2]